lending/lending_fUSD_20251111
["ID","MTS","AMOUNT","RATE_DAILY","PERIOD"]
[393656330,1762884638254,-596.34361244,0.00040196,7]
[393656331,1762884638267,-692.42360236,0.00040196,7]
[393656485,1762884640099,-11330.2508377,0.00040196,7]
[393656486,1762884640111,-4786.54128652,0.00040196,7]
[393656487,1762884640124,-14125.35769031,0.00040196,7]
[393656488,1762884640207,-342.108,0.00040196,7]
[393656489,1762884640218,-14341.9118694,0.00040196,7]
[393656490,1762884640231,-4384.421697,0.00040196,7]
[393656491,1762884640316,-960.09867848,0.00040196,7]
[393656492,1762884640370,-604.0,0.00040196,7]
[393656543,1762884643278,-151.0,0.00037508,2]
[393656545,1762884643288,-421.98645912,0.00040196,7]
[393656556,1762884643541,-673.3310658,0.00040196,7]
[393656572,1762884646545,-544.97760188,0.00039617,2]
[393656576,1762885021216,250.0,0.00017,2]
[393656583,1762885148723,300.0,0.000209,60]
[393656815,1762885508332,78627.31809404,0.00018,2]
[393656817,1762885564644,2510.55357343,0.000209,120]
[393656821,1762885664992,300.0,0.0003,120]
[393656826,1762885704935,5152.11690341,0.000246,120]
[393656827,1762885760160,-300.0,0.00019,2]
[393656828,1762885760180,-319.53348922,0.00019,2]
[393656838,1762885832289,-361.0,0.00019,2]
[393656840,1762885832300,-250.0,0.000209,2]
[393656841,1762885832309,-206.1438202,0.00025,2]
[393656842,1762885832320,-1680.66735613,0.00025,2]
[393656843,1762885832343,-239.26639684,0.00025,2]
[393656844,1762885832352,-300.0,0.00032,120]
[393656845,1762885832362,-187.0,0.00032999,3]
[393656846,1762885832371,-325.45208687,0.00032999,3]
[393656847,1762885832397,-370.0,0.00032999,3]
[393656848,1762885832454,-55.54791313,0.00032999,3]
[393656849,1762885832463,-1537.67798765,0.00033,2]
[393656850,1762885832472,-5172.17409923,0.00033,2]
[393656851,1762885832509,-45724.58436641,0.00033,2]
[393656852,1762885832518,-151.52248724,0.00033,2]
[393656853,1762885832527,-1195.54955552,0.000335,2]
[393656854,1762885832536,-64088.58934803,0.00034,2]
[393656855,1762885832545,-200.0,0.00034,120]
[393656856,1762885832554,-976.96,0.00034,2]
[393656857,1762885832564,-1707.44692141,0.0003449,2]
[393656858,1762885832573,-5000.0,0.00034598,2]
[393656859,1762885832583,-1000.0,0.000349,2]
[393656860,1762885832592,-1053.0202,0.000349,2]
[393656861,1762885832601,-1000.0,0.00034951,2]
[393656862,1762885832610,-500.0,0.00034989,7]
[393656863,1762885832619,-500.0,0.00034989,7]
[393656864,1762885832629,-500.0,0.00034989,7]
[393656865,1762885832638,-500.0,0.00034989,7]
[393656866,1762885832647,-500.0,0.00034989,7]
[393656867,1762885832665,-500.0,0.00034989,7]
[393656868,1762885832676,-392.24589828,0.00034989,7]
[393656869,1762885832686,-366.44391093,0.00034989,7]
[393656870,1762885832696,-400.08313203,0.00034989,7]
[393656871,1762885832706,-579.01285521,0.00034989,7]
[393656873,1762885832716,-500.0,0.00034989,7]
[393656875,1762885832726,-500.0,0.00034989,2]
[393656877,1762885832736,-500.0,0.00034989,7]
[393656879,1762885832746,-500.0,0.00034989,7]
[393656881,1762885832756,-500.0,0.00034989,7]
[393656883,1762885832766,-500.0,0.00034989,2]
[393656885,1762885832775,-388.81786925,0.00034989,7]
[393656887,1762885832784,-188.92253014,0.00034989,7]
[393656889,1762885832794,-247.30381556,0.00034989,2]
[393656891,1762885832804,-500.0,0.00034989,2]
[393656893,1762885832814,-500.0,0.00034989,7]
[393656895,1762885832823,-500.0,0.00034989,2]
[393656897,1762885832833,-500.0,0.00034989,2]
[393656898,1762885832842,-500.0,0.00034989,7]
[393656899,1762885832852,-500.0,0.00034989,2]
[393656900,1762885832861,-500.0,0.00034989,2]
[393656901,1762885832871,-500.0,0.00034989,7]
[393656902,1762885832880,-500.0,0.00034989,7]
[393656903,1762885832890,-500.0,0.00034989,7]
[393656904,1762885832899,-500.0,0.00034989,7]
[393656905,1762885832909,-500.0,0.00034989,7]
[393656906,1762885832918,-500.0,0.00034989,7]
[393656907,1762885832928,-500.0,0.00034989,7]
[393656908,1762885832941,-73588.5708905,0.0003499,3]
[393656909,1762885832951,-151.0,0.00034997,14]
[393656910,1762885832961,-579.46278632,0.00034999,7]
[393656911,1762885832971,-401.73418365,0.00035,2]
[393656913,1762885832982,-1220.63106498,0.00035,2]
[393656915,1762885832991,-31535.16660009,0.00035,2]
[393656918,1762885833006,-898.36018767,0.00035,2]
[393656920,1762885833021,-1216.2516,0.00035,2]
[393656977,1762885840333,-792.88000032,0.000349,2]
[393656978,1762885840389,-829.87189968,0.000349,2]
[393656979,1762885840399,-26.46640433,0.00035,2]
[393656980,1762885840445,-801.04957216,0.00035,2]
[393656981,1762885840456,-1160.73847063,0.00035,2]
[393656982,1762885840468,-2243.95,0.00035,2]
[393656983,1762885840479,-693.7537393,0.00035,2]
[393656984,1762885840501,-14049.45826809,0.00035,2]
[393656985,1762885840513,-959.37255751,0.00035,2]
[393656986,1762885840557,-1138.82115271,0.00035,2]
[393656987,1762885840568,-302.0999999,0.00035,2]
[393656988,1762885840612,-348.82372796,0.00035,2]
[393656989,1762885840624,-15307.73849599,0.00035,2]
[393656990,1762885840635,-500.0,0.00035,2]
[393656991,1762885840668,-1165.44999,0.00035,2]
[393656992,1762885840680,-1695.4,0.00035,2]
[393657059,1762885843422,-290.33096439,0.00035,2]
[393657061,1762885843433,-1035.06552466,0.00035,2]
[393657063,1762885843445,-464.94,0.00035,2]
[393657064,1762885843478,-13650.84462067,0.00035,2]
[393657065,1762885843639,-1825.84649464,0.00035,2]
[393657066,1762885843651,-236369.65605826,0.00035,2]
[393657067,1762885843801,-2366.88713661,0.00035,2]
[393657068,1762885843813,-1095.34938127,0.00035,2]
[393657069,1762885843827,-11438.87409698,0.00035,2]
[393657070,1762885843839,-2365.08758627,0.00035,2]
[393657071,1762885843851,-1750.7566905,0.00035,2]
[393657072,1762885843883,-1967.95011335,0.00035,2]
[393657084,1762886890265,154.29,0.00017269,2]
[393657086,1762887031448,-154.29,0.00018928,2]
[393657087,1762887031458,-154.29,0.00020587,2]
[393657088,1762887031467,-154.29,0.00022246,2]
[393657090,1762887031478,-154.29,0.00023905,2]
[393657092,1762887031487,-154.29,0.00025564,2]
[393657093,1762887031497,-154.29,0.00027224,2]
[393657094,1762887031507,-178.45,0.00027914,2]
[393657095,1762887031516,-78.6661798,0.00028883,2]
[393657096,1762887031528,-75.6238202,0.00028883,2]
[393657097,1762887031537,-305.5116154,0.00030513,2]
[393657098,1762887031547,-154.29,0.00030542,2]
[393657099,1762887031556,-300.0,0.00030705,60]
[393657100,1762887031565,-410.59417727,0.00031741,2]
[393657101,1762887031576,-452.11662572,0.00031741,2]
[393657102,1762887031587,-429.78919701,0.00031741,2]
[393657103,1762887031596,-10.77891283,0.00032201,2]
[393657104,1762887031607,-143.51108717,0.00032201,2]
[393657105,1762887031617,-856.48891283,0.00033279,3]
[393657106,1762887031628,-142.51108717,0.00033279,3]
[393657107,1762887031637,-226.58,0.00033403,2]
[393657108,1762887031647,-140.90891283,0.00033852,30]
[393657109,1762887031659,-156.09106308,0.00033852,30]
[393657110,1762887031668,-154.29,0.0003386,2]
[393657111,1762887031677,-131.48762155,0.00034071,30]
[393657112,1762887031693,-162.51233026,0.00034071,30]
[393657113,1762887031702,-293.99995181,0.00034345,30]
[393657114,1762887031711,-259.39015822,0.00034349,16]
[393657115,1762887031723,-108.00984178,0.00034349,16]
[393657116,1762887031732,-1600.0,0.00034437,3]
[393657117,1762887031742,-361.35341812,0.00034438,2]
[393657118,1762887031755,-1937.67658188,0.00034438,2]
[393657119,1762887031764,-400.0,0.0003458,2]
[393657120,1762887031774,-400.0,0.0003458,3]
[393657121,1762887031783,-4214.9525235,0.00034581,2]
[393657122,1762887031792,-154.539638,0.00034627,3]
[393657123,1762887031802,-150.99,0.00034627,2]
[393657124,1762887031811,-257.70271322,0.00034627,2]
[393657125,1762887031822,-2060.6472,0.00034627,2]
[393657126,1762887031833,-663.77175799,0.00034627,2]
[393657127,1762887031844,-923.15832879,0.00034627,2]
[393657128,1762887031853,-244.99995984,0.00034674,30]
[393657129,1762887031863,-6162.83,0.00034891,2]
[393657130,1762887031872,-279.9808,0.00034898,2]
[393657131,1762887031881,-8725.32574257,0.00034898,2]
[393657132,1762887037515,-1000.98123275,0.00034898,2]
[393657133,1762887037526,-3609.00695743,0.00034898,2]
[393657134,1762887037537,-501.56834888,0.00034973,5]
[393657135,1762887037548,-500.0,0.00034973,5]
[393657136,1762887037558,-216.68045081,0.00034973,5]
[393657137,1762887037568,-500.0,0.00034973,5]
[393657138,1762887037579,-500.0,0.00034973,5]
[393657139,1762887037589,-500.0,0.00034973,5]
[393657140,1762887037599,-500.0,0.00034973,5]
[393657141,1762887037608,-259.58284128,0.00034973,5]
[393657142,1762887037618,-376.36,0.00034988,3]
[393657144,1762887037628,-416.36709062,0.00034997,2]
[393657146,1762887037637,-500.0,0.00034997,7]
[393657147,1762887037647,-500.0,0.00034997,7]
[393657148,1762887037655,-500.0,0.00034997,7]
[393657149,1762887037675,-500.0,0.00034997,7]
[393657150,1762887037685,-500.0,0.00034997,7]
[393657151,1762887037695,-500.0,0.00034997,7]
[393657152,1762887037704,-500.0,0.00034997,7]
[393657153,1762887037714,-500.0,0.00034997,7]
[393657154,1762887037723,-500.0,0.00034997,7]
[393657156,1762887037733,-500.0,0.00034997,7]
[393657158,1762887037742,-500.0,0.00034997,7]
[393657160,1762887037751,-500.0,0.00034997,7]
[393657162,1762887037762,-500.0,0.00034997,7]
[393657164,1762887037771,-500.0,0.00034997,7]
[393657166,1762887037780,-500.0,0.00034997,7]
[393657168,1762887037790,-500.0,0.00034997,7]
[393657169,1762887037799,-500.0,0.00034997,7]
[393657172,1762887037809,-500.0,0.00034997,7]
[393657175,1762887037819,-500.0,0.00034997,7]
[393657177,1762887037828,-500.0,0.00034997,7]
[393657179,1762887037837,-500.0,0.00034997,7]
[393657181,1762887037847,-500.0,0.00034997,7]
[393657183,1762887037856,-500.0,0.00034997,7]
[393657185,1762887037865,-500.0,0.00034997,7]
[393657187,1762887037875,-500.0,0.00034997,7]
[393657189,1762887037884,-527.27525257,0.00034997,7]
[393657191,1762887037893,-500.0,0.00034997,7]
[393657193,1762887037903,-500.0,0.00034997,7]
[393657195,1762887037911,-500.0,0.00034997,7]
[393657197,1762887037920,-500.0,0.00034997,7]
[393657199,1762887037930,-500.0,0.00034997,7]
[393657201,1762887037940,-500.0,0.00034997,7]
[393657203,1762887037949,-500.0,0.00034997,7]
[393657205,1762887037959,-500.0,0.00034997,7]
[393657207,1762887037968,-500.0,0.00034997,7]
[393657209,1762887037978,-500.0,0.00034997,7]
[393657211,1762887037987,-500.0,0.00034997,7]
[393657213,1762887037996,-266.06,0.00034997,14]
[393657215,1762887038005,-500.0,0.00034997,7]
[393657217,1762887038016,-500.0,0.00034997,7]
[393657219,1762887038025,-500.0,0.00034997,7]
[393657221,1762887038035,-568.50078004,0.00034997,7]
[393657223,1762887038045,-500.0,0.00034997,7]
[393657225,1762887038055,-500.0,0.00034997,7]
[393657227,1762887038065,-500.0,0.00034997,7]
[393657229,1762887038075,-500.0,0.00034997,7]
[393657231,1762887038086,-1211.717,0.00034997,40]
[393657233,1762887038095,-236.573,0.00034997,40]
[393657235,1762887038105,-500.0,0.00034997,7]
[393657237,1762887038115,-230.65762471,0.00034997,7]
[393657239,1762887038124,-269.34237529,0.00034997,7]
[393657241,1762887038134,-500.0,0.00034997,7]
[393657243,1762887038144,-500.0,0.00034997,7]
[393657245,1762887038154,-500.0,0.00034997,7]
[393657247,1762887038164,-500.0,0.00034997,7]
[393657249,1762887038174,-500.0,0.00034997,7]
[393657251,1762887038184,-500.0,0.00034997,7]
[393657253,1762887038195,-500.0,0.00034997,7]
[393657255,1762887038204,-500.0,0.00034997,7]
[393657257,1762887038214,-500.0,0.00034997,7]
[393657260,1762887038230,-500.0,0.00034997,7]
[393657261,1762887038240,-500.0,0.00034997,7]
[393657264,1762887038251,-500.0,0.00034997,7]
[393657266,1762887038261,-500.0,0.00034997,7]
[393657267,1762887038271,-500.0,0.00034997,7]
[393657269,1762887038281,-43418.9031733,0.00034998,2]
[393657276,1762887039554,-1201.51149119,0.00034998,2]
[393657299,1762887042751,-26.45309947,0.00034998,2]
[393657475,1762887453518,371.44,0.00013699,2]
[393657477,1762887481808,195.0,0.00022206,120]
[393657478,1762887481965,195.0,0.00023432,120]
[393657479,1762887482886,200.0,0.00022206,120]
[393657481,1762887634280,-394.0,0.00020187,2]
[393657908,1762888160138,-154.0,0.000201,2]
[393657909,1762888160160,-371.44,0.00020187,2]
[393657910,1762888160186,-300.61352596,0.00020308,2]
[393657911,1762888160208,-300.0,0.00020308,2]
[393657912,1762888160229,-250.0,0.00020428,2]
[393657913,1762888160249,-1033.60204838,0.00020669,2]
[393657914,1762888160270,-300.0,0.00021406,2]
[393657915,1762888160290,-300.0,0.00022205,2]
[393657916,1762888160309,-300.0,0.00022205,2]
[393657917,1762888160329,-300.0,0.00022206,2]
[393657918,1762888160351,-1204.66163948,0.00022206,2]
[393657967,1762888231607,-457.0,0.00022206,2]
[393657970,1762888231617,-197.18308,0.00022206,2]
[393657973,1762888231627,-193.0,0.00022206,2]
[393657976,1762888231637,-300.0,0.00022206,2]
[393657979,1762888231646,-1200.0,0.00022299,2]
[393657982,1762888231656,-243.47372463,0.000223,2]
[393657987,1762888231667,-91.50410042,0.000223,2]
[393657991,1762888231677,-478.44322026,0.0002354,2]
[393657993,1762888231686,-300.0,0.00024123,2]
[393657995,1762888231696,-815.58253432,0.00024337,2]
[393657997,1762888231708,-544.41746568,0.00024337,2]
[393657998,1762888231718,-358.0,0.00026157,2]
[393657999,1762888231733,-371.44,0.00026676,2]
[393658000,1762888231743,-1107.58435229,0.000295,7]
[393658001,1762888231755,-11626.1596299,0.000295,7]
[393658002,1762888231764,-805.27833644,0.00029989,4]
[393658003,1762888231775,-1404.0,0.00031909,2]
[393658004,1762888231784,-166.66,0.00032723,30]
[393658005,1762888231794,-9307.1,0.00033054,2]
[393658006,1762888231805,-371.44,0.00033165,2]
[393658007,1762888231815,-816.95,0.00033465,30]
[393658008,1762888231824,-166.66,0.00033584,30]
[393658009,1762888231834,-151.0,0.0003368,2]
[393658010,1762888231844,-151.0,0.0003368,2]
[393658011,1762888231854,-151.0,0.0003368,2]
[393658012,1762888231863,-151.0,0.0003368,2]
[393658013,1762888231873,-151.0,0.0003368,2]
[393658014,1762888231883,-151.0,0.0003368,2]
[393658015,1762888231893,-151.0,0.0003368,2]
[393658016,1762888231907,-151.0,0.0003368,2]
[393658017,1762888231917,-151.0,0.0003368,2]
[393658018,1762888231926,-1.23974838,0.0003368,2]
[393658019,1762888231943,-149.76025162,0.0003368,2]
[393658020,1762888231953,-151.0,0.0003368,2]
[393658021,1762888231962,-17.57974849,0.000337,2]
[393658022,1762888231974,-485.70438051,0.000337,2]
[393658023,1762888231989,-1026.9530868,0.000337,2]
[393658024,1762888232018,-469.7627842,0.000337,2]
[393658025,1762888232028,-200.0,0.00033898,2]
[393658026,1762888232038,-678.18046634,0.00034149,2]
[393658028,1762888232050,-212.23,0.0003415,2]
[393658030,1762888232063,-150.0,0.00034208,2]
[393658032,1762888232077,-936.96,0.00034216,2]
[393658034,1762888232090,-166.66,0.00034445,30]
[393658036,1762888232103,-193.42,0.00034466,120]
[393658037,1762888232114,-452.93674947,0.00034497,5]
[393658046,1762888237603,-352.34158697,0.00034497,5]
[393658047,1762888237614,-195.0,0.00034549,2]
[393658048,1762888237627,-476.02712359,0.00034573,5]
[393658049,1762888237708,-23.97287641,0.00034573,5]
[393658050,1762888237719,-596.60712359,0.00034573,39]
[393658058,1762888239912,-372.76687641,0.00034573,39]
[393658059,1762888239926,-189.259,0.00034573,39]
[393658060,1762888239940,-386.52412332,0.00034597,2]
[393658061,1762888239955,-816.49559994,0.00034597,2]
[393658071,1762888242846,-401.28,0.00034597,2]
[393658075,1762888242902,-285.41469993,0.00034597,2]
[393658076,1762888243164,-58.92809802,0.00034597,2]
[393658077,1762888243179,-9012.19379346,0.00034598,2]
[393658078,1762888243218,-4034.57797042,0.00034598,2]
[393658079,1762888243232,-2042.58351889,0.00034598,2]
[393658080,1762888243272,-551.58075001,0.00034598,2]
[393658082,1762888245941,-4716.83218707,0.00034598,2]
[393658083,1762888246259,-313.71000017,0.00034598,2]
[393658084,1762888246274,-9328.56177998,0.00034598,2]
[393658085,1762888246285,-250.0,0.00034619,2]
[393658086,1762888246297,-235.0,0.00034634,2]
[393658087,1762888246309,-1053.0202,0.00034812,2]
[393658089,1762888246320,-319.35,0.00034887,2]
[393658092,1762888246330,-900.88310943,0.00034896,2]
[393658094,1762888246341,-151.0,0.00034897,14]
[393658096,1762888246351,-2500.0,0.00034898,2]
[393658098,1762888246361,-6029.96904974,0.000349,2]
[393658246,1762889108589,796588.39840052,0.00018,2]
[393658249,1762889214028,5000.0,0.000162,5]
[393658250,1762889289324,565.84422964,0.000135,2]
[393658273,1762889431886,-300.0,0.00020999,2]
[393658274,1762889431896,-3242.49999997,0.00021,2]
[393658275,1762889431940,-583.17001,0.00021,2]
[393658276,1762889431952,-655.679994,0.00021,2]
[393658277,1762889431997,-290.90400003,0.00021,2]
[393658281,1762889437788,-1983.14308496,0.00021,2]
[393658282,1762889437799,-2619.1736062,0.00021,2]
[393658283,1762889437948,-3431.10293293,0.00021,2]
[393658284,1762889437958,-198.6354873,0.00028619,2]
[393658285,1762889437967,-198.6354873,0.00028963,17]
[393658286,1762889437977,-198.6354873,0.00029307,32]
[393658287,1762889437987,-198.6354873,0.00029652,48]
[393658288,1762889437996,-198.6354873,0.00029996,63]
[393658290,1762889438005,-198.6354873,0.0003034,79]
[393658291,1762889438015,-198.6354873,0.00030684,94]
[393658292,1762889438025,-198.6354873,0.00031029,110]
[393658293,1762889438035,-640.82167638,0.0003143,4]
[393658294,1762889438213,-194.8259841,0.000315,2]
[393658295,1762889438223,-150.0,0.000315,2]
[393658296,1762889438232,-253.78766609,0.000315,2]
[393658297,1762889438242,-181.26,0.00032059,2]
[393658298,1762889438251,-2000.0,0.000321,2]
[393658299,1762889438261,-365.21,0.00032578,120]
[393658300,1762889438271,-9281.93,0.0003259,2]
[393658301,1762889438281,-873.0,0.00032905,2]
[393658302,1762889438290,-22510.16,0.00032906,2]
[393658303,1762889438300,-2751.0,0.00032932,120]
[393658304,1762889438310,-151.0,0.00032997,14]
[393658305,1762889438319,-45724.58436641,0.00033,2]
[393658306,1762889438329,-151.52248724,0.00033,2]
[393658307,1762889438338,-166.7,0.00033489,2]
[393658308,1762889438348,-1195.54955552,0.000335,2]
[393658309,1762889438357,-1000.0,0.000336,2]
[393658310,1762889438367,-192.35,0.00033631,120]
[393658311,1762889438377,-502.34671415,0.00033973,5]
[393658312,1762889438387,-500.0,0.00033973,5]
[393658313,1762889438400,-502.09786773,0.00033973,5]
[393658314,1762889438414,-500.0,0.00033973,5]
[393658315,1762889438426,-500.0,0.00033973,5]
[393658316,1762889438436,-500.0,0.00033973,5]
[393658317,1762889438445,-500.0,0.00033973,5]
[393658318,1762889438454,-556.41321553,0.00033973,5]
[393658319,1762889438463,-500.0,0.00033973,5]
[393658320,1762889438473,-500.0,0.00033973,5]
[393658321,1762889438483,-500.0,0.00033973,5]
[393658322,1762889438492,-151.0,0.00033997,14]
[393658323,1762889438503,-500.0,0.00033998,7]
[393658324,1762889438512,-500.0,0.00033998,7]
[393658325,1762889438522,-500.0,0.00033998,2]
[393658326,1762889438532,-366.44391093,0.00033998,7]
[393658327,1762889438541,-500.0,0.00033998,7]
[393658328,1762889438551,-500.0,0.00033998,7]
[393658329,1762889438561,-500.0,0.00033998,7]
[393658330,1762889438573,-372.573434,0.00033998,2]
[393658331,1762889438583,-500.0,0.00033998,7]
[393658332,1762889438593,-500.0,0.00033998,7]
[393658333,1762889438602,-579.01285521,0.00033998,7]
[393658334,1762889438612,-500.0,0.00033998,2]
[393658335,1762889438622,-500.0,0.00033998,7]
[393658336,1762889438631,-500.0,0.00033998,7]
[393658337,1762889438641,-500.0,0.00033998,7]
[393658338,1762889438650,-388.81786925,0.00033998,7]
[393658339,1762889438660,-500.0,0.00033998,2]
[393658340,1762889438670,-400.08313203,0.00033998,7]
[393658341,1762889438680,-392.24589828,0.00033998,7]
[393658342,1762889438689,-500.0,0.00033998,7]
[393658343,1762889438699,-500.0,0.00033998,2]
[393658344,1762889438709,-134.39706161,0.00033998,7]
[393658345,1762889438723,-365.60293839,0.00033998,7]
[393658346,1762889438732,-500.0,0.00033998,2]
[393658347,1762889438742,-209.59706161,0.00033998,7]
[393658348,1762889438754,-290.40293839,0.00033998,7]
[393658349,1762889438763,-500.0,0.00033998,2]
[393658350,1762889438772,-500.0,0.00033998,7]
[393658351,1762889438782,-500.0,0.00033998,7]
[393658352,1762889438791,-500.0,0.00033998,7]
[393658353,1762889438801,-500.0,0.00033998,7]
[393658354,1762889438811,-500.0,0.00033998,7]
[393658355,1762889438821,-500.0,0.00033998,7]
[393658356,1762889438833,-500.0,0.00033998,7]
[393658357,1762889438844,-500.0,0.00033998,7]
[393658358,1762889438854,-500.0,0.00033998,7]
[393658359,1762889438864,-500.0,0.00033998,7]
[393658360,1762889438875,-364.49890315,0.00033998,7]
[393658361,1762889438887,-500.0,0.00033998,7]
[393658362,1762889438898,-500.0,0.00033998,7]
[393658363,1762889438909,-500.0,0.00033998,7]
[393658364,1762889438921,-500.0,0.00033998,7]
[393658365,1762889438931,-500.0,0.00033998,7]
[393658366,1762889438942,-500.0,0.00033998,7]
[393658367,1762889438953,-500.0,0.00033998,7]
[393658368,1762889438965,-500.0,0.00033998,7]
[393658369,1762889438978,-500.0,0.00033998,7]
[393658370,1762889438988,-500.0,0.00033998,7]
[393658371,1762889439000,-500.0,0.00033998,7]
[393658372,1762889439011,-500.0,0.00033998,7]
[393658373,1762889439023,-500.0,0.00033998,7]
[393658374,1762889439033,-19850.0,0.00034,2]
[393658375,1762889439044,-826.433,0.00034,37]
[393658376,1762889439055,-181.498,0.00034,37]
[393658377,1762889439065,-27289.29785742,0.00034,2]
[393658379,1762889439921,-2587.85,0.00034,2]
[393658381,1762889439932,-459.4095232,0.00034,2]
[393658387,1762889439977,-812.23000005,0.00034,2]
[393658389,1762889439990,-2532.2076907,0.00034,2]
[393658391,1762889440002,-2247.17773114,0.00034,2]
[393658393,1762889440014,-6482.53081549,0.00034,2]
[393658398,1762889440091,-1801.47668218,0.00034,2]
[393658400,1762889440102,-1929.4159866,0.00034,2]
[393658402,1762889440117,-17946.99306125,0.00034,2]
[393658404,1762889440130,-976.96,0.00034,2]
[393658406,1762889440140,-151.0,0.00034,15]
[393658408,1762889440150,-151.0,0.00034,30]
[393658410,1762889440161,-211.058106,0.00034,30]
[393658412,1762889440171,-151.0,0.00034,31]
[393658414,1762889440181,-151.0,0.00034,31]
[393658416,1762889440190,-810.79479855,0.00034388,2]
[393658418,1762889440200,-9091.36843063,0.00034388,2]
[393658420,1762889440209,-186.13127659,0.00034427,15]
[393658422,1762889440219,-500.0,0.00034473,5]
[393658424,1762889440229,-500.0,0.00034473,5]
[393658426,1762889440239,-500.0,0.00034473,5]
[393658427,1762889440249,-500.0,0.00034473,5]
[393658428,1762889440259,-500.0,0.00034473,5]
[393658430,1762889440268,-151.0,0.00034473,31]
[393658432,1762889440278,-1000.0,0.00034476,2]
[393658434,1762889440287,-151.0,0.00034478,2]
[393658436,1762889440296,-151.0,0.00034478,2]
[393658438,1762889440306,-151.0,0.00034478,2]
[393658440,1762889440315,-151.0,0.00034478,2]
[393658442,1762889440325,-151.0,0.00034478,2]
[393658443,1762889440335,-151.0,0.00034478,2]
[393658444,1762889440345,-151.0,0.00034478,2]
[393658445,1762889440354,-151.0,0.00034478,2]
[393658446,1762889440364,-151.0,0.00034478,2]
[393658447,1762889440374,-151.0,0.00034478,2]
[393658448,1762889440384,-151.0,0.00034478,2]
[393658449,1762889440393,-151.0,0.00034478,2]
[393658450,1762889440402,-151.0,0.00034478,2]
[393658452,1762889440412,-151.0,0.00034478,2]
[393658454,1762889440421,-151.0,0.00034478,2]
[393658456,1762889440431,-151.0,0.00034478,2]
[393658458,1762889440440,-151.0,0.00034478,2]
[393658460,1762889440449,-151.0,0.00034478,2]
[393658463,1762889440459,-151.0,0.00034478,2]
[393658464,1762889440469,-151.0,0.00034478,2]
[393658465,1762889440479,-151.0,0.00034478,2]
[393658466,1762889440489,-151.0,0.00034478,2]
[393658467,1762889440499,-151.0,0.00034478,2]
[393658468,1762889440509,-151.0,0.00034478,2]
[393658469,1762889440519,-151.0,0.00034478,2]
[393658470,1762889440529,-151.0,0.00034478,2]
[393658471,1762889440539,-151.0,0.00034478,2]
[393658472,1762889440549,-212.85,0.00034478,14]
[393658473,1762889440559,-150.0,0.00034485,2]
[393658474,1762889440569,-150.0,0.00034485,14]
[393658475,1762889440578,-150.0,0.00034485,14]
[393658476,1762889440588,-151.0,0.00034485,14]
[393658477,1762889440598,-151.0,0.00034485,14]
[393658478,1762889440608,-151.0,0.00034485,14]
[393658479,1762889440618,-151.0,0.00034485,14]
[393658480,1762889440630,-150.0,0.00034487,7]
[393658481,1762889440641,-150.0,0.00034487,7]
[393658482,1762889440651,-150.0,0.00034487,7]
[393658483,1762889440660,-150.0,0.00034487,7]
[393658484,1762889440670,-150.0,0.00034487,7]
[393658485,1762889440681,-150.21338972,0.00034487,7]
[393658486,1762889440691,-150.0,0.00034487,7]
[393658487,1762889440701,-253.18593022,0.00034487,7]